Workbook

Sheet Руководство
B2: Руководство по использованию инструмента
B4: Данный инструмент разработан для предварительной оценки необходимости подачи отчётности о выбросах парниковых газов в соответствии с Постановлением Правительства РФ от 20.04.2022 № 707 (ред. от 29.10.2022). Методологическая база инструмента включает: • Приказ Минприроды России № 371; • Распоряжение Правительства РФ № 2979-р; • Постановление Правительства РФ № 707. Результаты, полученные с использованием данного инструмента, носят информационный характер и не освобождают компанию от обязательства самостоятельной проверки данных перед подачей официальной отчётности.
B5: Порядок работы с инструментом
B6: 1. Заполнение исходных данных Основной рабочий лист — «Внесение данных». Внесите данные за отчетный год по каждому блоку таблиц. • Ячейки, подлежащие обязательному заполнению, отмечены цветной заливкой. Заливка исчезает после ввода данных. • Убедитесь, что введенные данные корректны и соответствуют требуемым единицам измерения.
B7: 2. Сжигание топлива на котельных и генерация энергии На листе «Внесение данных», в таблице «Внесение данных по сжиганию на котельных, объектах генерации энергии, в том числе резервных»: • В столбце «Единица измерения» выберите значение из выпадающего списка (тонны, тыс м³, литры и др.). • После выбора проверьте столбец «Коэффициент перевода в единицы по Постановлению Правительства № 707»: o Если выводится «-», смените единицу измерения на иную, пока коэффициент не примет числовое значение. o Для видов топлива с предустановленным коэффициентом 0,001 данные вносятся в тоннах.
B8: 3. Сжигание топлива в транспорте • Аналогично заполните таблицу «Внесение данных по сжиганию топлива в транспорте». • Убедитесь в корректности выбранных единиц измерения и коэффициентов.
B9: 4. Обработка, сжигание и захоронение отходов Если ваша компания не передает отходы сторонним организациям, а проводит их обработку/сжигание/захоронение самостоятельно — заполните таблицу «Внесение данных по обработке, сжиганию и захоронению твердых отходов».
B10: 5. Производство керамических изделий Если компания ведет такую деятельность, внесите информацию в таблицу «Внесение данных по производству керамических изделий». В графах «Содержание карбоната в минеральном сырье» и «Степень кальцинирования карбоната» значения указываются в долях, то есть от 0 до 1 без указания знака % (например, 0,75).
B11: 6. Производство стекла Если компания ведет такую деятельность, внесите информацию в таблицу «Внесение данных по производству стекла». В графе «Степень кальцинирования карбоната» значения указываются в долях, то есть от 0 до 1 без указания знака % (например, 0,75).
B12: 7. Проверка данных После внесения всех значений проверьте: • корректность данных; • соответствие единиц измерения; • отсутствие пустых обязательных ячеек.
B13: 8. Анализ результатов • Перейдите на лист «Результат оценки». • Ознакомьтесь с суммарными выбросами организации в тоннах CO₂-эквивалента. • Если результат превышает 50 000 т CO₂-экв., согласно 296-ФЗ и ПП РФ №707 соответствует критерию подачи отчётности в ГИС «Энергоэффективность» в срок до 1 июля года, следующего за отчетным.
B14: Важные замечания • Инструмент предоставляет ориентировочную оценку и не заменяет официальных расчётов. • Ответственность за корректность исходных данных лежит на пользователе. • Непредставление отчётности при обязательстве её подачи может повлечь ответственность в соответствии с КоАП РФ. • С более подробной информацией по критериям подачи корректной отчетности можно ознакомиться напрямую на портале ГИС «Энергоэффективность».
B15: Ссылка на портал ГИС "Энергоэффективность"

Sheet 1.Внесение данных
B2: 1. Внесение данных
B3: Внесите данные в столбец D для всех применимых блоков таблиц.
B4: Данные вносятся за последний отчетный год.
B5: Выберите необходимые единицы измерения.
B6: Коэффициенты в таблицах подтянутся автоматически.
B8: Внесение данных по сжиганию на котельных, объектах генерации энергии, в том числе резервных
B10: Тип топлива | C10: Единица измерения | D10: Данные для внесения | E10: Коэффициент перевода в единицы по Постановлению Правительства № 707
B11: Газ горючий природный (естественный) | C11: Необходимо заполнить | E11: =IFERROR(INDEX(Справочник!$C$181:$E$210,MATCH('1.Внесение данных'!B11,Справочник!$B$181:$B$210,0),MATCH('1.Внесение данных'!C11,Справочник!$C$179:$E$179,0)),"Нет коэффициента") -> Нет коэффициента | F11: =IF(C11="Необходимо заполнить",(IF(D11>0, "Пожалуйста, выберите единицу измерения", "")),"") -> 
B12: Газ сжиженный | C12: Необходимо заполнить | E12: =IFERROR(INDEX(Справочник!$C$181:$E$210,MATCH('1.Внесение данных'!B12,Справочник!$B$181:$B$210,0),MATCH('1.Внесение данных'!C12,Справочник!$C$179:$E$179,0)),"Нет коэффициента") -> Нет коэффициента | F12: =IF(C12="Необходимо заполнить",(IF(D12>0, "Пожалуйста, выберите единицу измерения", "")),"") -> 
B13: Пропан и бутан сжиженные, газы углеводородные и их смеси сжиженные | C13: Необходимо заполнить | E13: =IFERROR(INDEX(Справочник!$C$181:$E$210,MATCH('1.Внесение данных'!B13,Справочник!$B$181:$B$210,0),MATCH('1.Внесение данных'!C13,Справочник!$C$179:$E$179,0)),"Нет коэффициента") -> Нет коэффициента
B14: Газ попутный нефтяной (нефтяные месторождения) | C14: Необходимо заполнить | E14: =IFERROR(INDEX(Справочник!$C$181:$E$210,MATCH('1.Внесение данных'!B14,Справочник!$B$181:$B$210,0),MATCH('1.Внесение данных'!C14,Справочник!$C$179:$E$179,0)),"Нет коэффициента") -> Нет коэффициента
B15: Газ попутный нефтяной (газоконденсатные месторождения) | C15: Необходимо заполнить | E15: =IFERROR(INDEX(Справочник!$C$181:$E$210,MATCH('1.Внесение данных'!B15,Справочник!$B$181:$B$210,0),MATCH('1.Внесение данных'!C15,Справочник!$C$179:$E$179,0)),"Нет коэффициента") -> Нет коэффициента
B16: Газ попутный нефтяной (газовые месторождения) | C16: Необходимо заполнить | E16: =IFERROR(INDEX(Справочник!$C$181:$E$210,MATCH('1.Внесение данных'!B16,Справочник!$B$181:$B$210,0),MATCH('1.Внесение данных'!C16,Справочник!$C$179:$E$179,0)),"Нет коэффициента") -> Нет коэффициента
B17: Газ горючий искусственный доменный | C17: Необходимо заполнить | E17: =IFERROR(INDEX(Справочник!$C$181:$E$210,MATCH('1.Внесение данных'!B17,Справочник!$B$181:$B$210,0),MATCH('1.Внесение данных'!C17,Справочник!$C$179:$E$179,0)),"Нет коэффициента") -> Нет коэффициента
B18: Кокс металлургический | C18: Необходимо заполнить | E18: =IFERROR(INDEX(Справочник!$C$181:$E$210,MATCH('1.Внесение данных'!B18,Справочник!$B$181:$B$210,0),MATCH('1.Внесение данных'!C18,Справочник!$C$179:$E$179,0)),"Нет коэффициента") -> Нет коэффициента
B19: Кокс нефтяной и сланцевый | C19: Необходимо заполнить | E19: =IFERROR(INDEX(Справочник!$C$181:$E$210,MATCH('1.Внесение данных'!B19,Справочник!$B$181:$B$210,0),MATCH('1.Внесение данных'!C19,Справочник!$C$179:$E$179,0)),"Нет коэффициента") -> Нет коэффициента
B20: Мазут (мазут топочный) | C20: Необходимо заполнить | E20: =IFERROR(INDEX(Справочник!$C$181:$E$210,MATCH('1.Внесение данных'!B20,Справочник!$B$181:$B$210,0),MATCH('1.Внесение данных'!C20,Справочник!$C$179:$E$179,0)),"Нет коэффициента") -> Нет коэффициента
B21: Антрацит | C21: Необходимо заполнить | E21: 0.001
B22: Коксующийся уголь | C22: Необходимо заполнить | E22: 0.001
B23: Каменный уголь | C23: Необходимо заполнить | E23: 0.001
B24: Уголь бурый | C24: Необходимо заполнить | E24: =IFERROR(INDEX(Справочник!$C$181:$E$210,MATCH('1.Внесение данных'!B24,Справочник!$B$181:$B$210,0),MATCH('1.Внесение данных'!C24,Справочник!$C$179:$E$179,0)),"Нет коэффициента") -> Нет коэффициента
B25: Торф топливный | C25: Необходимо заполнить | E25: 0.001
B26: Брикеты и полубрикеты торфяные | C26: Необходимо заполнить | E26: 0.001
B27: Дизельное топливо | C27: Необходимо заполнить | E27: =IFERROR(INDEX(Справочник!$C$181:$E$210,MATCH('1.Внесение данных'!B27,Справочник!$B$181:$B$210,0),MATCH('1.Внесение данных'!C27,Справочник!$C$179:$E$179,0)),"Нет коэффициента") -> Нет коэффициента | F27: =IF(C27="Необходимо заполнить",(IF(D27>0, "Пожалуйста, выберите единицу измерения", "")),"") -> 
B29: Внесение данных по сжиганию топлива в транспорте
B31: Тип топлива | C31: Единица измерения | D31: Данные для внесения | E31: Коэффициент перевода в единицы по Постановлению Правительства № 707
B32: Авиационный бензин | C32: Необходимо заполнить | E32: =IFERROR(INDEX(Справочник!$C$181:$E$210,MATCH('1.Внесение данных'!B32,Справочник!$B$181:$B$210,0),MATCH('1.Внесение данных'!C32,Справочник!$C$179:$E$179,0)),"Нет коэффициента") -> Нет коэффициента | F32: =IF(C32="Необходимо заполнить",(IF(D32>0, "Пожалуйста, выберите единицу измерения", "")),"") -> 
B33: Топливо для реактивных двигателей | C33: Необходимо заполнить | E33: =IFERROR(INDEX(Справочник!$C$181:$E$210,MATCH('1.Внесение данных'!B33,Справочник!$B$181:$B$210,0),MATCH('1.Внесение данных'!C33,Справочник!$C$179:$E$179,0)),"Нет коэффициента") -> Нет коэффициента
B34: Дизельное топливо (железнодорожный транспорт) | C34: Необходимо заполнить | E34: =IFERROR(INDEX(Справочник!$C$181:$E$210,MATCH('1.Внесение данных'!B34,Справочник!$B$181:$B$210,0),MATCH('1.Внесение данных'!C34,Справочник!$C$179:$E$179,0)),"Нет коэффициента") -> Нет коэффициента
B35: Бензин в автотранспорте
B36: АИ-80 | C36: Необходимо заполнить | E36: =IFERROR(INDEX(Справочник!$C$181:$E$210,MATCH('1.Внесение данных'!B36,Справочник!$B$181:$B$210,0),MATCH('1.Внесение данных'!C36,Справочник!$C$179:$E$179,0)),"Нет коэффициента") -> Нет коэффициента
B37: АИ-92 | C37: Необходимо заполнить | E37: =IFERROR(INDEX(Справочник!$C$181:$E$210,MATCH('1.Внесение данных'!B37,Справочник!$B$181:$B$210,0),MATCH('1.Внесение данных'!C37,Справочник!$C$179:$E$179,0)),"Нет коэффициента") -> Нет коэффициента
B38: АИ-93 | C38: Необходимо заполнить | E38: =IFERROR(INDEX(Справочник!$C$181:$E$210,MATCH('1.Внесение данных'!B38,Справочник!$B$181:$B$210,0),MATCH('1.Внесение данных'!C38,Справочник!$C$179:$E$179,0)),"Нет коэффициента") -> Нет коэффициента
B39: АИ-95 | C39: Необходимо заполнить | E39: =IFERROR(INDEX(Справочник!$C$181:$E$210,MATCH('1.Внесение данных'!B39,Справочник!$B$181:$B$210,0),MATCH('1.Внесение данных'!C39,Справочник!$C$179:$E$179,0)),"Нет коэффициента") -> Нет коэффициента
B40: АИ-98 | C40: Необходимо заполнить | E40: =IFERROR(INDEX(Справочник!$C$181:$E$210,MATCH('1.Внесение данных'!B40,Справочник!$B$181:$B$210,0),MATCH('1.Внесение данных'!C40,Справочник!$C$179:$E$179,0)),"Нет коэффициента") -> Нет коэффициента
B41: Дизельное топливо (летнее, зимнее, арктическое) в автотранспорте | C41: Необходимо заполнить | E41: =IFERROR(INDEX(Справочник!$C$181:$E$210,MATCH('1.Внесение данных'!B41,Справочник!$B$181:$B$210,0),MATCH('1.Внесение данных'!C41,Справочник!$C$179:$E$179,0)),"Нет коэффициента") -> Нет коэффициента
B42: Сжиженный нефтяной газ (пропан, изобутан, н-бутан) | C42: Необходимо заполнить | E42: =IFERROR(INDEX(Справочник!$C$181:$E$210,MATCH('1.Внесение данных'!B42,Справочник!$B$181:$B$210,0),MATCH('1.Внесение данных'!C42,Справочник!$C$179:$E$179,0)),"Нет коэффициента") -> Нет коэффициента
B43: Газ сжиженный (морской и внутренний водный транспорт) | C43: Необходимо заполнить | E43: =IFERROR(INDEX(Справочник!$C$181:$E$210,MATCH('1.Внесение данных'!B43,Справочник!$B$181:$B$210,0),MATCH('1.Внесение данных'!C43,Справочник!$C$179:$E$179,0)),"Нет коэффициента") -> Нет коэффициента
B44: Мазутное топливо (мазут флотский) | C44: Необходимо заполнить | E44: =IFERROR(INDEX(Справочник!$C$181:$E$210,MATCH('1.Внесение данных'!B44,Справочник!$B$181:$B$210,0),MATCH('1.Внесение данных'!C44,Справочник!$C$179:$E$179,0)),"Нет коэффициента") -> Нет коэффициента
B45: Дизельное топливо (морской и внутренний водный транспорт) | C45: Необходимо заполнить | E45: =IFERROR(INDEX(Справочник!$C$181:$E$210,MATCH('1.Внесение данных'!B45,Справочник!$B$181:$B$210,0),MATCH('1.Внесение данных'!C45,Справочник!$C$179:$E$179,0)),"Нет коэффициента") -> Нет коэффициента
B46: Компримированный природный газ | C46: Необходимо заполнить | E46: =IFERROR(INDEX(Справочник!$C$181:$E$210,MATCH('1.Внесение данных'!B46,Справочник!$B$181:$B$210,0),MATCH('1.Внесение данных'!C46,Справочник!$C$179:$E$179,0)),"Нет коэффициента") -> Нет коэффициента
B48: Внесение данных по обработке, сжиганию и захоронению твердых отходов
B50: Тип обращения с отходами | C50: Единица измерения | D50: Данные для внесения | E50: Коэффициент перевода в единицы по Постановлению Правительства № 707
B51: Компостирование (за исключением отходов животноводства (навоз и помет) | C51: т | E51: 0.001
B52: Анаэробное сбраживание (за исключением отходов животноводства (навоз и помет) | C52: т | E52: 0.001
B53: Сжигание твердых коммунальных отходов (небиологическая фракция) | C53: т | E53: 0.001
B54: Сжигание нефтесодержащих отходов | C54: т | E54: 0.001
B56: Внесение данных по производству керамических изделий
B58: Показатель | C58: Единица измерения | D58: Данные для внесения | E58: Коэффициент перевода в единицы по Постановлению Правительства № 707
B59: Производство керамических изделий | C59: т | E59: 0.001
B60: Расход минерального сырья, содержащего карбонат CaCO3, загруженного в обжиговую печь | C60: т
B61: Расход минерального сырья, содержащего карбонат MgCO3, загруженное в обжиговую печь за период y | C61: т
B62: Расход минерального сырья, содержащего карбонат CaMg(CO3)2, загруженное в обжиговую печь за период y | C62: т
B63: Расход минерального сырья, содержащего карбонат FeCO3, загруженное в обжиговую печь за период y | C63: т
B64: Содержание карбоната CaCO3 в минеральном сырье | C64: доля
B65: Содержание карбоната MgCO3 в минеральном сырье | C65: доля
B66: Содержание карбоната CaMg(CO3)2 в минеральном сырье | C66: доля
B67: Содержание карбоната FeCO3 в минеральном сырье | C67: доля
B68: Степень кальцинирования карбоната CaCO3 | C68: доля
B69: Степень кальцинирования карбоната MgCO3 | C69: доля
B70: Степень кальцинирования карбоната CaMg(CO3)2 | C70: доля
B71: Степень кальцинирования карбоната FeCO3 | C71: доля
B73: Внесение данных по производству стекла
B75: Показатель | C75: Единица измерения | D75: Данные для внесения | E75: Коэффициент перевода в единицы по Постановлению Правительства № 707
B76: Производство стекла/стеклянных изделий | C76: т | E76: 0.001
B77: Масса карбоната CaCO3, израсходованного в стекловаренных печах | C77: т
B78: Масса карбоната MgCO3, израсходованного в стекловаренных печах | C78: т
B79: Масса карбоната CaMg(CO3)2, израсходованного в стекловаренных печах | C79: т
B80: Масса карбоната FeCO3, израсходованного в стекловаренных печах | C80: т
B81: Степень кальцинирования карбоната CaCO3 | C81: доля
B82: Степень кальцинирования карбоната MgCO3 | C82: доля
B83: Степень кальцинирования карбоната CaMg(CO3)2 | C83: доля
B84: Степень кальцинирования карбоната FeCO3 | C84: доля

Sheet 2. Результат оценки
C2: 2. Результат оценки
C4: Итоговое значение массы выбросов, тонны CO2-экв. | D4: =SUM(J13:J29,J31:J32,J34:J48,J50:J54) -> 0 | E4: Необходимость подавать отчетность | F4: =IF(D4>50000, "Да", "Нет") -> Нет | G4: =IF(F4="Да","C более подробной информацией по критериям подачи отчетности рекомендуется ознакомиться на портале ГИС «Энергоэффективность»","") -> 
B6: Ниже представлен подробный результат расчета на основании данных, внесенных на листе "1.Внесение данных".
B8: Форма отчета о выбросах парниковых газов
B10: Производственные процессы и виды деятельности | D10: Показатели производственных процессов и видов деятельности за отчетный период | F10: Конверсионный коэффициент, тонн CO2-экв. на единицу потребляемого энергоресурса/производимой продукции | H10: Масса выбросов по парниковым газам | J10: Общая масса выбросов парниковых газов, тонн
D11: наименование показателя | E11: значение показателя | F11: парниковый газ | G11: значение коэффициента | H11: тонн | I11: тонн CO2-экв. | J11: CO2-экв.
B12: 1. | C12: Стационарное сжигание газообразного, жидкого и твердого топлива, включая следующие виды топлива
C13: газ горючий природный (естественный) | D13: суммарный расход топлива, млн. куб. м | E13: =IF(ISNUMBER('1.Внесение данных'!D11*'1.Внесение данных'!E11), '1.Внесение данных'!D11*'1.Внесение данных'!E11, 0) -> 0 | F13: CO2 | G13: =VLOOKUP(C13,Справочник!$B$43:$I$130,5,0) -> 1.59 | H13: =E13*G13*VLOOKUP('2. Результат оценки'!C13,Справочник!$B$43:$I$129, 3,FALSE)*1000 -> 0 | I13: =H13 -> 0 | J13: =I13 -> 0
C14: газ сжиженный | D14: суммарный расход топлива, тыс. тонн | E14: =IF(ISNUMBER('1.Внесение данных'!D12*'1.Внесение данных'!E12), '1.Внесение данных'!D12*'1.Внесение данных'!E12, 0) -> 0 | F14: CO2 | G14: =VLOOKUP(C14,Справочник!$B$43:$I$130,5,0) -> 1.65 | H14: =E14*G14*VLOOKUP('2. Результат оценки'!C14,Справочник!$B$43:$I$129, 3,FALSE)*1000 -> 0 | I14: =H14 -> 0 | J14: 0
C15: пропан и бутан сжиженные, газы углеводородные и их смеси сжиженные | D15: суммарный расход топлива, млн. куб. м | E15: =IF(ISNUMBER('1.Внесение данных'!D13*'1.Внесение данных'!E13), '1.Внесение данных'!D13*'1.Внесение данных'!E13, 0) -> 0 | F15: CO2 | G15: =VLOOKUP(C15,Справочник!$B$43:$I$130,5,0) -> 1.85 | H15: =E15*G15*VLOOKUP('2. Результат оценки'!C15,Справочник!$B$43:$I$129, 3,FALSE)*1000 -> 0 | I15: 0 | J15: 0
C16: газ попутный нефтяной (нефтяные месторождения) | D16: суммарный расход топлива, млн. куб. м | E16: =IF(ISNUMBER('1.Внесение данных'!D14*'1.Внесение данных'!E14), '1.Внесение данных'!D14*'1.Внесение данных'!E14, 0) -> 0 | F16: CO2 | G16: =VLOOKUP(C16,Справочник!$B$43:$I$130,5,0) -> 1.77 | H16: =E16*G16*VLOOKUP('2. Результат оценки'!C16,Справочник!$B$43:$I$129, 3,FALSE)*1000 -> 0 | I16: 0 | J16: 0
C17: газ попутный нефтяной (газоконденсатные месторождения) | D17: суммарный расход топлива, млн. куб. м | E17: =IF(ISNUMBER('1.Внесение данных'!D15*'1.Внесение данных'!E15), '1.Внесение данных'!D15*'1.Внесение данных'!E15, 0) -> 0 | F17: CO2 | G17: =VLOOKUP(C17,Справочник!$B$43:$I$130,5,0) -> 1.64 | H17: =E17*G17*VLOOKUP('2. Результат оценки'!C17,Справочник!$B$43:$I$129, 3,FALSE)*1000 -> 0 | I17: 0 | J17: 0
C18: газ попутный нефтяной (газовые месторождения) | D18: суммарный расход топлива, млн. куб. м | E18: =IF(ISNUMBER('1.Внесение данных'!D16*'1.Внесение данных'!E16), '1.Внесение данных'!D16*'1.Внесение данных'!E16, 0) -> 0 | F18: CO2 | G18: =VLOOKUP(C18,Справочник!$B$43:$I$130,5,0) -> 1.62 | H18: =E18*G18*VLOOKUP('2. Результат оценки'!C18,Справочник!$B$43:$I$129, 3,FALSE)*1000 -> 0 | I18: 0 | J18: 0
C19: газ горючий искусственный доменный | D19: суммарный расход топлива, тыс. куб. м | E19: =IF(ISNUMBER('1.Внесение данных'!D17*'1.Внесение данных'!E17), '1.Внесение данных'!D17*'1.Внесение данных'!E17, 0) -> 0 | F19: CO2 | G19: =VLOOKUP(C19,Справочник!$B$43:$I$130,5,0) -> 7.62 | H19: =E19*G19*VLOOKUP('2. Результат оценки'!C19,Справочник!$B$43:$I$129, 3,FALSE) -> 0 | I19: 0 | J19: 0
C20: кокс металлургический | D20: суммарный расход топлива, тыс. тонн | E20: =IF(ISNUMBER('1.Внесение данных'!D18*'1.Внесение данных'!E18), '1.Внесение данных'!D18*'1.Внесение данных'!E18, 0) -> 0 | F20: CO2 | G20: =VLOOKUP(C20,Справочник!$B$43:$I$130,5,0) -> 3.14 | H20: =E20*G20*VLOOKUP('2. Результат оценки'!C20,Справочник!$B$43:$I$129, 3,FALSE)*1000 -> 0 | I20: 0 | J20: 0
C21: кокс нефтяной и сланцевый | D21: суммарный расход топлива, тыс. тонн | E21: =IF(ISNUMBER('1.Внесение данных'!D19*'1.Внесение данных'!E19), '1.Внесение данных'!D19*'1.Внесение данных'!E19, 0) -> 0 | F21: CO2 | G21: =VLOOKUP(C21,Справочник!$B$43:$I$130,5,0) -> 2.86 | H21: =E21*G21*VLOOKUP('2. Результат оценки'!C21,Справочник!$B$43:$I$129, 3,FALSE)*1000 -> 0 | I21: 0 | J21: =I21 -> 0
C22: мазут топочный | D22: суммарный расход топлива, тыс. тонн | E22: =IF(ISNUMBER('1.Внесение данных'!D20*'1.Внесение данных'!E20), '1.Внесение данных'!D20*'1.Внесение данных'!E20, 0) -> 0 | F22: CO2 | G22: =VLOOKUP(C22,Справочник!$B$43:$I$130,5,0) -> 2.27 | H22: =E22*G22*VLOOKUP('2. Результат оценки'!C22,Справочник!$B$43:$I$129, 3,FALSE)*1000 -> 0 | I22: =H22 -> 0 | J22: =I22 -> 0
C23: антрацит | D23: суммарный расход топлива, тыс. тонн | E23: =IF(ISNUMBER('1.Внесение данных'!D21*'1.Внесение данных'!E21), '1.Внесение данных'!D21*'1.Внесение данных'!E21, 0) -> 0 | F23: CO2 | G23: =VLOOKUP(C23,Справочник!$B$43:$I$130,5,0) -> 2.88 | H23: =E23*G23*VLOOKUP('2. Результат оценки'!C23,Справочник!$B$43:$I$129, 3,FALSE)*1000 -> 0 | I23: =H23 -> 0 | J23: =I23 -> 0
C24: коксующийся уголь | D24: суммарный расход топлива, тыс. тонн | E24: =IF(ISNUMBER('1.Внесение данных'!D22*'1.Внесение данных'!E22), '1.Внесение данных'!D22*'1.Внесение данных'!E22, 0) -> 0 | F24: CO2 | G24: =VLOOKUP(C24,Справочник!$B$43:$I$130,5,0) -> 2.77 | H24: =E24*G24*VLOOKUP('2. Результат оценки'!C24,Справочник!$B$43:$I$129, 3,FALSE)*1000 -> 0 | I24: =H24 -> 0 | J24: =I24 -> 0
C25: каменный уголь | D25: суммарный расход топлива, тыс. тонн | E25: =IF(ISNUMBER('1.Внесение данных'!D23*'1.Внесение данных'!E23), '1.Внесение данных'!D23*'1.Внесение данных'!E23, 0) -> 0 | F25: CO2 | G25: =VLOOKUP(C25,Справочник!$B$43:$I$130,5,0) -> 2.77 | H25: =E25*G25*VLOOKUP('2. Результат оценки'!C25,Справочник!$B$43:$I$129, 3,FALSE)*1000 -> 0 | I25: =H25 -> 0 | J25: =I25 -> 0
C26: бурый уголь | D26: суммарный расход топлива, тыс. тонн | E26: =IF(ISNUMBER('1.Внесение данных'!D24*'1.Внесение данных'!E24), '1.Внесение данных'!D24*'1.Внесение данных'!E24, 0) -> 0 | F26: CO2 | G26: =VLOOKUP(C26,Справочник!$B$43:$I$130,5,0) -> 2.96 | H26: =E26*G26*VLOOKUP('2. Результат оценки'!C26,Справочник!$B$43:$I$129, 3,FALSE)*1000 -> 0 | I26: =H26 -> 0 | J26: =I26 -> 0
C27: торф топливный | D27: суммарный расход топлива, тыс. тонн | E27: =IF(ISNUMBER('1.Внесение данных'!D25*'1.Внесение данных'!E25), '1.Внесение данных'!D25*'1.Внесение данных'!E25, 0) -> 0 | F27: CO2 | G27: =VLOOKUP(C27,Справочник!$B$43:$I$130,5,0) -> 3.11 | H27: =E27*G27*VLOOKUP('2. Результат оценки'!C27,Справочник!$B$43:$I$129, 3,FALSE)*1000 -> 0 | I27: =H27 -> 0 | J27: =I27 -> 0
C28: брикеты и полубрикеты торфяные | D28: суммарный расход топлива, тыс. тонн | E28: =IF(ISNUMBER('1.Внесение данных'!D26*'1.Внесение данных'!E26), '1.Внесение данных'!D26*'1.Внесение данных'!E26, 0) -> 0 | F28: CO2 | G28: =VLOOKUP(C28,Справочник!$B$43:$I$130,5,0) -> 3.11 | H28: =E28*G28*VLOOKUP('2. Результат оценки'!C28,Справочник!$B$43:$I$129, 3,FALSE)*1000 -> 0 | I28: =H28 -> 0 | J28: =I28 -> 0
C29: топливо дизельное | D29: суммарный расход топлива, тыс. тонн | E29: =IF(ISNUMBER('1.Внесение данных'!D27*'1.Внесение данных'!E27), '1.Внесение данных'!D27*'1.Внесение данных'!E27, 0) -> 0 | F29: CO2 | G29: =VLOOKUP(C29,Справочник!$B$43:$I$130,5,0) -> 2.17 | H29: =E29*G29*VLOOKUP('2. Результат оценки'!C29,Справочник!$B$43:$I$129, 3,FALSE)*1000 -> 0 | I29: =H29 -> 0 | J29: =I29 -> 0
B30: 2. | C30: Производство минеральных материалов
C31: производство всех видов стекла | D31: объем производства продукции, тыс. тонн | E31: =IF(ISNUMBER('1.Внесение данных'!D76*'1.Внесение данных'!E76),'1.Внесение данных'!D76*'1.Внесение данных'!E76, 0) -> 0 | F31: CO2 | G31: =H31/E31 ->  | H31: ='Доп.формулы для кер_стекло'!C20 -> 0 | I31: =H31 -> 0 | J31: 0
C32: производство керамических изделий | D32: объем производства продукции, тыс. тонн | E32: =IF(ISNUMBER('1.Внесение данных'!D59*'1.Внесение данных'!E59),'1.Внесение данных'!D59*'1.Внесение данных'!E59, 0) -> 0 | F32: CO2 | G32: =J32/E32 ->  | H32: ='Доп.формулы для кер_стекло'!C11 -> 0 | I32: =H32 -> 0 | J32: 0
B33: 3. | C33: Сжигание топлива в транспорте
C34: авиационный бензин | D34: суммарный расход, тыс. тонн | E34: =IF(ISNUMBER('1.Внесение данных'!D32*'1.Внесение данных'!E32), '1.Внесение данных'!D32*'1.Внесение данных'!E32, 0) -> 0 | F34: CO2 | G34: =Справочник!C230 -> 3.1 | H34: =E34*G34*1000 -> 0 | I34: =H34 -> 0 | J34: =I34 -> 0
C35: топливо для реактивных двигателей | D35: суммарный расход, тыс. тонн | E35: =IF(ISNUMBER('1.Внесение данных'!D33*'1.Внесение данных'!E33), '1.Внесение данных'!D33*'1.Внесение данных'!E33, 0) -> 0 | F35: CO2 | G35: =Справочник!C231 -> 3.1 | H35: =E35*G35*1000 -> 0 | I35: =H35 -> 0 | J35: 0
C36: дизельное топливо (железнодорожный транспорт) | D36: суммарный расход, тыс. тонн | E36: =IF(ISNUMBER('1.Внесение данных'!D34*'1.Внесение данных'!E34), '1.Внесение данных'!D34*'1.Внесение данных'!E34, 0) -> 0 | F36: CO2 | G36: =Справочник!C221 -> 3.149 | H36: 0 | I36: =H36 -> 0 | J36: 0
C37: бензин (А70 (АИ-80), АИ-92, АИ-93, АИ-95, АИ-98) в автотранспорте | D37: суммарный расход, тыс. тонн | E37: =IF(ISNUMBER(E38+E39+E40+E41+E42),SUM(E38:E42,0)) -> 0 | F37: CO2 | G37: =Справочник!C216 -> 3.026 | H37: 0 | I37: =H37 -> 0 | J37: 0
C38: АИ-80 | D38: суммарный расход, тыс. тонн | E38: =IF(ISNUMBER('1.Внесение данных'!D36*'1.Внесение данных'!E36), '1.Внесение данных'!D36*'1.Внесение данных'!E36, 0) -> 0 | F38: CO2 | G38: =Справочник!C216:C220 -> 3.026
C39: АИ-92 | D39: суммарный расход, тыс. тонн | E39: =IF(ISNUMBER('1.Внесение данных'!D37*'1.Внесение данных'!E37), '1.Внесение данных'!D37*'1.Внесение данных'!E37, 0) -> 0 | F39: CO2 | G39: 3.026
C40: АИ-93 | D40: суммарный расход, тыс. тонн | E40: =IF(ISNUMBER('1.Внесение данных'!D38*'1.Внесение данных'!E38), '1.Внесение данных'!D38*'1.Внесение данных'!E38, 0) -> 0 | F40: CO2 | G40: 3.026
C41: АИ-95 | D41: суммарный расход, тыс. тонн | E41: =IF(ISNUMBER('1.Внесение данных'!D39*'1.Внесение данных'!E39), '1.Внесение данных'!D39*'1.Внесение данных'!E39, 0) -> 0 | F41: CO2 | G41: 3.026
C42: АИ-98 | D42: суммарный расход, тыс. тонн | E42: =IF(ISNUMBER('1.Внесение данных'!D40*'1.Внесение данных'!E40), '1.Внесение данных'!D40*'1.Внесение данных'!E40, 0) -> 0 | F42: CO2 | G42: 3.026
C43: дизельное топливо (летнее, зимнее, арктическое) в автотранспорте | D43: суммарный расход, тыс. тонн | E43: =IF(ISNUMBER('1.Внесение данных'!D41*'1.Внесение данных'!E41), '1.Внесение данных'!D41*'1.Внесение данных'!E41, 0) -> 0 | F43: CO2 | G43: =Справочник!C221 -> 3.149 | H43: 0 | I43: =H43 -> 0 | J43: 0
C44: сжиженный нефтяной газ (пропан, изобутан, н-бутан) | D44: суммарный расход, тыс. тонн | E44: =IF(ISNUMBER('1.Внесение данных'!D42*'1.Внесение данных'!E42), '1.Внесение данных'!D42*'1.Внесение данных'!E42, 0) -> 0 | F44: CO2 | G44: =Справочник!C229 -> 3.16 | H44: 0 | I44: =H44 -> 0 | J44: 0
C45: газ сжиженный (морской и внутренний водный транспорт) | D45: суммарный расход, тыс. тонн | E45: =IF(ISNUMBER('1.Внесение данных'!D43*'1.Внесение данных'!E43), '1.Внесение данных'!D43*'1.Внесение данных'!E43, 0) -> 0 | F45: CO2 | G45: =Справочник!C228 -> 2.71 | H45: 0 | I45: =H45 -> 0 | J45: 0
C46: мазутное топливо (мазут флотский) | D46: суммарный расход, тыс. тонн | E46: =IF(ISNUMBER('1.Внесение данных'!D44*'1.Внесение данных'!E44), '1.Внесение данных'!D44*'1.Внесение данных'!E44, 0) -> 0 | F46: CO2 | G46: =Справочник!F57 -> 2.27 | H46: 0 | I46: =H46 -> 0 | J46: 0
C47: дизельное топливо (морской и внутренний водный транспорт) | D47: суммарный расход, тыс. тонн | E47: =IF(ISNUMBER('1.Внесение данных'!D45*'1.Внесение данных'!E45), '1.Внесение данных'!D45*'1.Внесение данных'!E45, 0) -> 0 | F47: CO2 | G47: =Справочник!C232 -> 2.95 | H47: 0 | I47: =H47 -> 0 | J47: 0
C48: компримированный природный газ | D48: суммарный расход, тыс. тонн | E48: =IF(ISNUMBER('1.Внесение данных'!D46*'1.Внесение данных'!E46), '1.Внесение данных'!D46*'1.Внесение данных'!E46, 0) -> 0 | F48: CO2 | G48: =Справочник!C228 -> 2.71 | H48: 0 | I48: =H48 -> 0 | J48: 0
B49: 4. | C49: Обработка, сжигание и захоронение твердых отходов
C50: компостирование (за исключением отходов животноводства (навоз и помет) | D50: масса обработанных отходов, тыс. тонн | E50: =IF(ISNUMBER('1.Внесение данных'!D51*'1.Внесение данных'!E51),'1.Внесение данных'!D51*'1.Внесение данных'!E51,0) -> 0 | F50: CH4 | G50: =Справочник!D256*Справочник!D6 -> 112 | H50: =E50*G50 -> 0 | I50: =H50*Справочник!D6 -> 0 | J50: =I50 -> 0
F51: N2O | G51: =Справочник!F256*Справочник!D7 -> 79.5 | H51: =E50*G51 -> 0 | I51: =H51*Справочник!D7 -> 0 | J51: =I51 -> 0
C52: анаэробное сбраживание (за исключением отходов животноводства (навоз и помет) | D52: масса обработанных отходов, тыс. тонн | E52: =IF(ISNUMBER('1.Внесение данных'!D52*'1.Внесение данных'!E52),'1.Внесение данных'!D52*'1.Внесение данных'!E52,0) -> 0 | F52: CH4 | G52: =Справочник!D257*Справочник!D6 -> 28 | H52: =E52*G52 -> 0 | I52: =H52*Справочник!D6 -> 0 | J52: 0
C53: сжигание твердых коммунальных отходов (небиологическая фракция) | D53: расход отходов, тыс. тонн | E53: =IF(ISNUMBER('1.Внесение данных'!D53*'1.Внесение данных'!E53),'1.Внесение данных'!D53*'1.Внесение данных'!E53,0) -> 0 | F53: CO2 | G53: =Справочник!C247 -> 0.92 | H53: =E53*G53 -> 0 | I53: =H53 -> 0 | J53: 0
C54: сжигание нефтесодержащих отходов | D54: суммарный расход топлива, тыс. тонн | E54: =IF(ISNUMBER('1.Внесение данных'!D54*'1.Внесение данных'!E54),'1.Внесение данных'!D54*'1.Внесение данных'!E54,0) -> 0 | F54: CO2 | G54: =Справочник!C248 -> 2.91 | H54: =E54*G54 -> 0 | I54: =H54 -> 0 | J54: =I54 -> 0
C55: Источник: Постановление Правительства РФ от 20.04.2022 N 707 (ред. от 29.10.2022) "Об утверждении Правил представления и проверки отчетов о выбросах парниковых газов, формы отчета о выбросах парниковых газов, Правил создания и ведения реестра выбросов парниковых газов и о внесении изменений в некоторые акты Правительства Российской Федерации".

Sheet Справочник (hidden)
B2: Перечень парниковых газов, в отношении которых осуществляется государственный учёт выбросов парниковых газов и ведение кадастра парниковых газов
B4: Наименование парникового газа (коммерческое наименование) | C4: Химическая формула | D4: Коэффициент пересчета величин выбросов парниковых газов в эквивалент диоксида углерода (на горизонте 100 лет) | E4: Источник
B5: Диоксид углерода | C5: CO2 | D5: 1 | E5: Распоряжение Правительства РФ от 22.10.2021 N 2979-р (ред. от 04.04.2025) "Об утверждении перечня парниковых газов, в отношении которых осуществляется государственный учет выбросов парниковых газов и ведение кадастра парниковых газов"
B6: Метан | C6: CH4 | D6: 28
B7: Закись азота (монооксид диазота) | C7: N2O | D7: 265
B8: Гексафторид серы | C8: SF6 | D8: 23500
B9: Гидрофторуглероды (ГФУ)
B10: ГФУ-23 трифторметан | C10: CHF3 | D10: 12400
B11: ГФУ-32 дифторметан | C11: CH2F2 | D11: 677
B12: ГФУ-41 фторметан | C12: CH3F | D12: 116
B13: ГФУ-43-10mee 1,1,1,2,2,3,4,5,5,5-декафторпентан | C13: C5H2F10 (CF3CHFCHFCF2CF3) | D13: 1650
B14: ГФУ-125 пентафторэтан | C14: CHF2CF3 | D14: 3170
B15: ГФУ-134 1,1,2,2-тетрафторэтан | C15: C2H2F4 (CHF2CHF2) | D15: 1120
B16: ГФУ-134a 1,1,1,2-тетрафторэтан | C16: CH2FCF3 | D16: 1300
B17: ГФУ-143 1,1,2-трифторэтан | C17: CH2FCHF2 | D17: 328
B18: ГФУ-143a 1,1,1-трифторэтан | C18: CH3CF3 | D18: 4800
B19: ГФУ-152 1,2-дифторэтан | C19: C2H4F2(CH2FCH2F) | D19: 16
B20: ГФУ-152а 1,1-дифторэтан | C20: C2H4F2(CH3CHF2) | D20: 138
B21: ГФУ-161 фторэтан | C21: C2H5F(CH3CH2F) | D21: 4
B22: ГФУ-227ea 1,1,1,2,3,3,3-гептафторпропан | C22: C3HF7(CF3CHFCF3) | D22: 3350
B23: ГФУ-236cb 1,1,1,2,2,3-гексафторпропан | C23: C3H2F6(CH2FCF2CF3) | D23: 1210
B24: ГФУ-236ea 1,1,1,2,3,3-гексафторпропан | C24: C3H2F6(CHF2CHFCF3) | D24: 1330
B25: ГФУ-236fa 1,1,1,3,3,3-гексафторпропан | C25: C3H2F6(CF3CH2CF3) | D25: 8060
B26: ГФУ-245ca 1,1,2,2,3-пентафторпропан | C26: CH2FCF2CHF2 | D26: 716
B27: ГФУ-245fa 1,1,1,3,3-пентафторпропан | C27: C3H3F5(CHF2CH2CF3) | D27: 858
B28: ГФУ-365mfc 1,1,1,3,3-пентафторбутан | C28: CH3CF2CH2CF3 | D28: 804
B29: Перфторуглероды (ПФУ)
B30: ПФУ-14 тетрафторметан (перфторметан) | C30: CF4 | D30: 6630
B31: ПФУ-116 гексафторэтан (перфторэтан) | C31: C2F6 | D31: 11100
B32: ПФУ-218 октафторпропан (перфторпропан) | C32: C3F8 | D32: 8900
B33: ПФУ-3-1-10 декафторбутан (перфторбутан) | C33: C4F10 | D33: 9200
B34: ПФУ-318 октафторциклобутан (перфторциклобутан) | C34: c-C4F8 | D34: 9540
B35: ПФУ-4-1-12 додекафторпентан (перфторпентан) | C35: n-C5F12 | D35: 8550
B36: ПФУ-5-1-14 тетрадекафторгексан (перфторгексан) | C36: n-C6F14 | D36: 7910
B37: ПФУ-9-1-18 октадекафтордекалин (перфтордекалин) | C37: C10F18 | D37: 7190
B38: Перфторциклопентен | C38: c-C5F8 | D38: 2
B39: Трифторид азота | C39: NF3 | D39: 16100
B41: Коэффициенты перевода расхода топлива в энергетические единицы, коэффициенты выбросов CO2 и содержание углерода по видам топлива
B43: Виды топлива | C43: Коэффициенты перевода в тонны условного топлива и энергетические единицы (NCVj,y) | F43: Коэффициенты выбросов (EFCO2,j,y) | H43: Содержание углерода (WC,j,y) | J43: Источник
C44: Единица измерения | D44: т у.т./т (тыс. м3) | E44: ТДж/тыс. т (млн м3) | F44: т CO2/т у.т. | G44: т CO2/ТДж | H44: т C/т у.т. | I44: т C/ТДж
B45: Жидкие топлива (нефть и продукты переработки нефти) | J45: Приказ Минприроды России от 27.05.2022 N 371 "Об утверждении методик количественного определения объемов выбросов парниковых газов и поглощений парниковых газов" (Зарегистрировано в Минюсте России 29.07.2022 N 69451)
B46: Нефть, включая промысловый газоконденсат | C46: тонна | D46: 1.43 | E46: 41.9 | F46: 2.15 | G46: 73.3 | H46: 0.59 | I46: 20
B47: Природный газовый конденсат | C47: тонна | D47: 1.508 | E47: 44.2 | F47: 1.88 | G47: 64.2 | H47: 0.51 | I47: 17.5
B48: Газ попутный нефтяной (нефтяные месторождения) | C48: тыс. м3 | D48: 1.154 | E48: 33.8 | F48: 1.77 | G48: 60.4 | H48: 0.48 | I48: 16.5
B49: Газ попутный нефтяной (газоконденсатные месторождения) | C49: тыс. м3 | D49: 1.154 | E49: 33.8 | F49: 1.64 | G49: 55.9 | H49: 0.45 | I49: 15.3
B50: Газ попутный нефтяной (газовые месторождения) | C50: тыс. м3 | D50: 1.154 | E50: 33.8 | F50: 1.62 | G50: 55.2 | H50: 0.44 | I50: 15.1
B51: Бензин автомобильный | C51: тонна | D51: 1.49 | E51: 43.7 | F51: 2.03 | G51: 69.3 | H51: 0.55 | I51: 18.9
B52: Бензин авиационный | C52: тонна | D52: 1.49 | E52: 43.7 | F52: 2.05 | G52: 70 | H52: 0.56 | I52: 19.1
B53: Авиационный керосин | C53: тонна | D53: 1.47 | E53: 43.1 | F53: 2.1 | G53: 71.5 | H53: 0.57 | I53: 19.5
B54: Керосин | C54: тонна | D54: 1.47 | E54: 43.1 | F54: 2.11 | G54: 71.9 | H54: 0.58 | I54: 19.6
B55: Топливо дизельное | C55: тонна | D55: 1.45 | E55: 42.5 | F55: 2.17 | G55: 74.1 | H55: 0.59 | I55: 20.2
B56: Мазут топочный | C56: тонна | D56: 1.37 | E56: 40.2 | F56: 2.27 | G56: 77.4 | H56: 0.62 | I56: 21.1
B57: Мазут флотский | C57: тонна | D57: 1.43 | E57: 41.9 | F57: 2.27 | G57: 77.4 | H57: 0.62 | I57: 21.1
B58: Топливо печное бытовое | C58: тонна | D58: 1.45 | E58: 42.5 | F58: 2.27 | G58: 77.4 | H58: 0.62 | I58: 21.1
B59: Газ сжиженный нефтяной | C59: тонна | D59: 1.57 | E59: 46 | F59: 1.85 | G59: 63.1 | H59: 0.5 | I59: 17.2
B60: Другие моторные топлива | C60: тонна | D60: 1.47 | E60: 43.1 | F60: 2.11 | G60: 71.9 | H60: 0.58 | I60: 19.6
B61: Нефтебитум | C61: тонна | D61: 1.35 | E61: 39.6 | F61: 2.37 | G61: 80.7 | H61: 0.65 | I61: 22
B62: Этан | C62: тонна | D62: 1.583 | E62: 46.4 | F62: 1.81 | G62: 61.6 | H62: 0.49 | I62: 16.8
B63: Пропан | C63: тонна | D63: 1.57 | E63: 46 | F63: 1.87 | G63: 63.8 | H63: 0.51 | I63: 17.4
B64: Бутан | C64: тонна | D64: 1.57 | E64: 46 | F64: 1.82 | G64: 62 | H64: 0.5 | I64: 16.9
B65: Пропан и бутан сжиженные, газы углеводородные и их смеси сжиженные | C65: тонна | D65: 1.57 | E65: 46 | F65: 1.85 | G65: 63.2 | H65: 0.51 | I65: 17.3
B66: Лигроин | C66: тонна | D66: 1.536 | E66: 45 | F66: 2.15 | G66: 73.3 | H66: 0.59 | I66: 20
B67: Смазочные материалы | C67: тонна | D67: 1.372 | E67: 40.2 | F67: 2.15 | G67: 73.3 | H67: 0.59 | I67: 20
B68: Газ нефтеперерабатывающих предприятий сухой | C68: тонна | D68: 1.5 | E68: 44 | F68: 1.3 | G68: 44.4 | H68: 0.35 | I68: 12.1
B69: Кокс нефтяной и сланцевый | C69: тонна | D69: 1.08 | E69: 31.7 | F69: 2.86 | G69: 97.5 | H69: 0.78 | I69: 26.6
B70: Другие нефтепродукты | C70: тонна | D70: 1.43 | E70: 41.9 | F70: 2.15 | G70: 73.3 | H70: 0.59 | I70: 20
B71: Твердые топлива (уголь и продукты переработки угля)
B72: Рядовой уголь месторождений:
B73: уголь донецкий | C73: тонна | D73: 0.876 | E73: 25.7 | F73: 2.65 | G73: 90.2 | H73: 0.72 | I73: 24.6
B74: уголь кузнецкий | C74: тонна | D74: 0.867 | E74: 25.4 | F74: 2.69 | G74: 91.9 | H74: 0.73 | I74: 25.1
B75: уголь карагандинский | C75: тонна | D75: 0.726 | E75: 21.3 | F75: 2.76 | G75: 94.2 | H75: 0.75 | I75: 25.7
B76: уголь подмосковный | C76: тонна | D76: 0.335 | E76: 9.82 | F76: 2.79 | G76: 95 | H76: 0.76 | I76: 25.9
B77: уголь воркутинский | C77: тонна | D77: 0.822 | E77: 24.1 | F77: 2.71 | G77: 92.6 | H77: 0.74 | I77: 25.3
B78: уголь интинский | C78: тонна | D78: 0.649 | E78: 19 | F78: 2.73 | G78: 93.1 | H78: 0.75 | I78: 25.4
B79: уголь челябинский | C79: тонна | D79: 0.552 | E79: 16.2 | F79: 2.78 | G79: 94.9 | H79: 0.76 | I79: 25.9
B80: уголь свердловский | C80: тонна | D80: 0.33 | E80: 9.67 | F80: 2.76 | G80: 94.2 | H80: 0.75 | I80: 25.7
B81: уголь башкирский | C81: тонна | D81: 0.264 | E81: 7.74 | F81: 2.76 | G81: 94.2 | H81: 0.75 | I81: 25.7
B82: уголь нерюнгринский | C82: тонна | D82: 0.987 | E82: 28.9 | F82: 2.76 | G82: 94.2 | H82: 0.75 | I82: 25.7
B83: уголь якутский | C83: тонна | D83: 0.751 | E83: 22 | F83: 2.76 | G83: 94.2 | H83: 0.75 | I83: 25.7
B84: уголь черемховский | C84: тонна | D84: 0.752 | E84: 22 | F84: 2.75 | G84: 94 | H84: 0.75 | I84: 25.7
B85: уголь азейский | C85: тонна | D85: 0.483 | E85: 14.2 | F85: 2.75 | G85: 93.9 | H85: 0.75 | I85: 25.6
B86: уголь читинский | C86: тонна | D86: 0.483 | E86: 14.2 | F86: 2.9 | G86: 98.9 | H86: 0.79 | I86: 27
B87: уголь гусиноозерский | C87: тонна | D87: 0.506 | E87: 14.8 | F87: 2.78 | G87: 94.9 | H87: 0.76 | I87: 25.9
B88: уголь хакасский | C88: тонна | D88: 0.727 | E88: 21.3 | F88: 2.77 | G88: 94.4 | H88: 0.76 | I88: 25.8
B89: уголь канско-ачинский | C89: тонна | D89: 0.516 | E89: 15.1 | F89: 2.87 | G89: 98.1 | H89: 0.78 | I89: 26.8
B90: уголь тувинский | C90: тонна | D90: 0.906 | E90: 26.6 | F90: 2.76 | G90: 94.2 | H90: 0.75 | I90: 25.7
B91: уголь тунгусский | C91: тонна | D91: 0.754 | E91: 22.1 | F91: 2.76 | G91: 94.2 | H91: 0.75 | I91: 25.7
B92: уголь магаданский | C92: тонна | D92: 0.701 | E92: 20.5 | F92: 2.73 | G92: 93.1 | H92: 0.75 | I92: 25.4
B93: уголь арктический (шпицбергенский) | C93: тонна | D93: 0.669 | E93: 19.6 | F93: 2.76 | G93: 94.2 | H93: 0.75 | I93: 25.7
B94: уголь норильский | C94: тонна | D94: 0.761 | E94: 22.3 | F94: 2.76 | G94: 94.2 | H94: 0.75 | I94: 25.7
B95: уголь огоджинский | C95: тонна | D95: 0.447 | E95: 13.1 | F95: 2.76 | G95: 94.2 | H95: 0.75 | I95: 25.7
B96: уголь камчатский | C96: тонна | D96: 0.323 | E96: 9.47 | F96: 2.73 | G96: 93.1 | H96: 0.75 | I96: 25.4
B97: уголь Приморья | C97: тонна | D97: 0.506 | E97: 14.8 | F97: 2.73 | G97: 93.1 | H97: 0.75 | I97: 25.4
B98: уголь экибастузский | C98: тонна | D98: 0.628 | E98: 18.4 | F98: 2.77 | G98: 94.6 | H98: 0.76 | I98: 25.8
B99: уголь алтайский | C99: тонна | D99: 0.782 | E99: 22.9 | F99: 2.76 | G99: 94.2 | H99: 0.75 | I99: 25.7
B100: уголь тугнуйский | C100: тонна | D100: 0.692 | E100: 20.3 | F100: 2.76 | G100: 94.2 | H100: 0.75 | I100: 25.7
B101: уголь прочих месторождений | C101: тонна | D101: 0.768 | E101: 22.5 | F101: 2.76 | G101: 94.2 | H101: 0.75 | I101: 25.7
B102: уголь импортный | C102: тонна | D102: 0.768 | E102: 22.5 | F102: 2.76 | G102: 94.2 | H102: 0.75 | I102: 25.7
B103: Антрацит | C103: тонна | D103: 0.911 | E103: 26.7 | F103: 2.88 | G103: 98.3 | H103: 0.79 | I103: 26.8
B104: Коксующийся уголь | C104: тонна | D104: 0.962 | E104: 28.2 | F104: 2.77 | G104: 94.6 | H104: 0.76 | I104: 25.8
B105: Каменный уголь | C105: тонна | D105: 0.768 | E105: 22.5 | F105: 2.77 | G105: 94.6 | H105: 0.76 | I105: 25.8
B106: Бурый уголь | C106: тонна | D106: 0.467 | E106: 13.7 | F106: 2.96 | G106: 101 | H106: 0.81 | I106: 27.6
B107: Сланцы горючие | C107: тонна | D107: 0.3 | E107: 8.79 | F107: 3.14 | G107: 107 | H107: 0.86 | I107: 29.2
B108: Брикеты угольные | C108: тонна | D108: 0.605 | E108: 17.7 | F108: 2.86 | G108: 97.5 | H108: 0.78 | I108: 26.6
B109: Кокс металлургический | C109: тонна | D109: 0.99 | E109: 29 | F109: 3.14 | G109: 107 | H109: 0.86 | I109: 29.2
B110: Смола каменноугольная коксохимических заводов | C110: тонна | D110: 1.3 | E110: 38.1 | F110: 2.37 | G110: 80.7 | H110: 0.65 | I110: 22
B111: Газы искусственные горючие
B112: Газ горючий искусственный коксовый | C112: тыс. м3 | D112: 0.57 | E112: 16.7 | F112: 1.3 | G112: 44.4 | H112: 0.35 | I112: 12.1
B113: Газ горючий искусственный доменный | C113: тыс. м3 | D113: 0.143 | E113: 4.19 | F113: 7.62 | G113: 260 | H113: 2.08 | I113: 71
B114: Газ горючий искусственный конвертерный | C114: тыс. м3 | D114: 0.24 | E114: 7.06 | F114: 5.33 | G114: 182 | H114: 0.35 | I114: 49.6
B115: Природный газ
B116: Газ горючий природный (естественный) | C116: тыс. м3 | D116: 1.129 | E116: 33.08 | F116: 1.59 | G116: 54.4 | H116: 0.43 | I116: 14.8
B117: Газ компримированный | C117: тыс. м3 | D117: 1.129 | E117: 33.08 | F117: 1.59 | G117: 54.4 | H117: 0.43 | I117: 14.8
B118: Газ сжиженный | C118: тонна | D118: 1.57 | E118: 46 | F118: 1.65 | G118: 56.4 | H118: 0.45 | I118: 15.4
B119: Торф
B120: Торф топливный | C120: тонна | D120: 0.34 | E120: 10 | F120: 3.11 | G120: 106 | H120: 0.85 | I120: 28.9
B121: Брикеты и полубрикеты торфяные | C121: тонна | D121: 0.6 | E121: 17.6 | F121: 3.11 | G121: 106 | H121: 0.85 | I121: 28.9
B122: Отходы
B123: Отходы бытовые (небиологическая фракция) | C123: тонна | D123: 0.341 | E123: 10 | F123: 2.69 | G123: 91.7 | H123: 0.73 | I123: 25
B124: Прочие горючие отходы технологических производств | C124: тонна у.т. | D124: 1 | E124: 29.3 | F124: 4.19 | G124: 143 | H124: 1.14 | I124: 39
B125: Нефтяные отходы | C125: тонна | D125: 1.372 | E125: 40.2 | F125: 2.12 | G125: 72.2 | H125: 0.58 | I125: 19.7
B126: Биотоплива
B127: Биобензин | C127: тонна | D127: 0.921 | E127: 27 | F127: 2.07 | G127: 70.8 | H127: 0.57 | I127: 19.3
B128: Био-дизтопливо | C128: тонна | D128: 0.921 | E128: 27 | F128: 2.07 | G128: 70.8 | H128: 0.57 | I128: 19.3
B129: Другие виды жидкого биотоплива | C129: тонна | D129: 0.935 | E129: 27.4 | F129: 2.33 | G129: 79.6 | H129: 0.63 | I129: 21.7
B131: Плотность диоксида углерода и метана для различных условий измерения
B133: N | C133: Условия измерений | D133: Плотность диоксида углерода (CO2), кг/м3 | E133: Плотность метана (CH4), кг/м3 | F133: Источник
B134: 1. | C134: 273,15 К (0 °C); 101,325 кПа | D134: 1.9768 | E134: 0.717 | F134: Приказ Минприроды России от 27.05.2022 N 371 "Об утверждении методик количественного определения объемов выбросов парниковых газов и поглощений парниковых газов" (Зарегистрировано в Минюсте России 29.07.2022 N 69451)
B135: 2. | C135: 288,15 К (15 °C); 101,325 кПа | D135: 1.8738 | E135: 0.6797
B136: 3. | C136: 293,15 К (20 °C); 101,325 кПа | D136: 1.8393 | E136: 0.668
B138: Коэффициенты выбросов CO2 при сжигании топлива, а также плотность разных топлив
B140: Вид топлива | C140: Коэффициент выбросов (EF) | F140: Плотность (P), кг/л | G140: Источник | H140: Комментарий
C141: т CO2/т (тыс. м3) | D141: Кг/ТДж | E141: Кг/т.у.т.
B142: Бензин А-76 (АИ-80) | C142: 3.026 | D142: 69300 | E142: 2031 | F142: 0.715 | G142: Приказ Минприроды России от 27.05.2022 N 371 "Об утверждении методик количественного определения объемов выбросов парниковых газов и поглощений парниковых газов" (Зарегистрировано в Минюсте России 29.07.2022 N 69451)
B143: Бензин АИ-92 | C143: 3.026 | D143: 69300 | E143: 2031 | F143: 0.735
B144: Бензин АИ-93 | C144: 3.026 | D144: 69300 | E144: 2031 | F144: 0.745
B145: Бензин АИ-95 | C145: 3.026 | D145: 69300 | E145: 2031 | F145: 0.75
B146: Бензин АИ-98 | C146: 3.026 | D146: 69300 | E146: 2031 | F146: 0.765
B147: Дизельное топливо летнее | C147: 3.149 | D147: 74100 | E147: 2172 | F147: 0.86
B148: Дизельное топливо зимнее | C148: 3.149 | D148: 74100 | E148: 2172 | F148: 0.84
B149: Дизельное топливо арктическое | C149: 3.149 | D149: 74100 | E149: 2172 | F149: 0.83
B150: Сжиженный нефтяной газ (СНГ) (пропан) | C150: 2.903 | D150: 63100 | E150: 1849 | F150: 0.528 | H150: *при t = 0 °C
B151: Сжиженный нефтяной газ СНГ (изобутан) | C151: 2.903 | D151: 63100 | E151: 1849 | F151: 0.582 | H151: *при t = 0 °C
B152: Сжиженный нефтяной газ СНГ (н-бутан) | C152: 2.903 | D152: 63100 | E152: 1849 | F152: 0.601 | H152: *при t = 0 °C
B153: Компримированный природный газ (КПГ) | C153: 1.84 | D153: 54400 | E153: 1594 | F153: 0.668 | H153: *при t = 0 °C
B154: Сжиженный природный газ (СПГ) | C154: 2.71 | D154: 54400 | E154: 1594 | F154: 0.424 | H154: *при t = 0 °C
B155: Авиационный керосин | C155: 3.16 | D155: 71900 | E155: 2100 | F155: 0.8
B156: Авиационный бензин | C156: 3.1 | D156: 69300 | E156: 2050 | F156: 0.8
B157: Топливо для реактивных двигателей | C157: 3.1 | D157: 71900 | E157: 2110 | F157: 0.8
B158: Смазочные материалы | C158: 2.95 | D158: - | E158: - | F158: -
B159: Топочный мазут | C159: - | D159: 77400 | E159: - | F159: -
B160: Твердые топлива (уголь и продукты его переработки) (рядовой) (т)
B161: Донецкий | C161: 2.32 | D161: - | E161: - | F161: -
B162: Кузнецкий | C162: 2.33 | D162: - | E162: - | F162: -
B163: Нерюнгринский | C163: 2.72 | D163: - | E163: - | F163: -
B164: Черемховский | C164: 2.07 | D164: - | E164: - | F164: -
B165: Канско-Ачинский | C165: 1.48 | D165: - | E165: - | F165: -
B166: Казахский (Каражаринский) | C166: 1.38 | D166: - | E166: - | F166: -
B167: Азейский | C167: 1.33 | D167: - | E167: - | F167: -
B168: Читинский | C168: 1.4 | D168: - | E168: - | F168: -
B169: Торф (т)
B170: Торф топливный | C170: 1.06 | D170: - | E170: - | F170: -
B171: Брикеты и полубрикеты торфяные | C171: 1.87 | D171: - | E171: - | F171: -
B172: Отходы (т)
B173: Отходы бытовые (небиологическая фракция) | C173: 0.92 | D173: - | E173: - | F173: -
B174: Нефтяные отходы | C174: 2.91 | D174: - | E174: - | F174: -
B175: Прочие горючие отходы производства (т у.т.) | C175: 4.19 | D175: - | E175: - | F175: -
B177: Справочные коэффициенты перевода в единицы измерения
B179: Вид топлива | C179: т | D179: л | E179: тыс м^3 | F179: Источник
B180: Стационарное сжигание
B181: Газ горючий природный (естественный) | C181: - | D181: - | E181: 0.001
B182: Газ сжиженный | C182: 0.001 | D182: - | E182: -
B183: Пропан и бутан сжиженные, газы углеводородные и их смеси сжиженные | C183: - | D183: - | E183: 0.001
B184: Газ попутный нефтяной (нефтяные месторождения) | C184: - | D184: - | E184: 0.001
B185: Газ попутный нефтяной (газоконденсатные месторождения) | C185: - | D185: - | E185: 0.001
B186: Газ попутный нефтяной (газовые месторождения) | C186: - | D186: - | E186: 0.001
B187: Газ горючий искусственный доменный | C187: - | D187: - | E187: 1
B188: Кокс металлургический | C188: 0.001 | D188: - | E188: -
B189: Кокс нефтяной и сланцевый | C189: 0.001 | D189: - | E189: -
B190: Мазут (мазут топочный) | C190: 0.001 | D190: - | E190: -
B191: Уголь, за исключением бурого | C191: 0.001 | D191: - | E191: -
B192: Уголь бурый | C192: 0.001 | D192: - | E192: -
B193: Торф топливный, брикеты и полубрикеты торфяные | C193: 0.001 | D193: - | E193: -
B194: Дизельное топливо | C194: 0.001 | D194: =C194/0.00086/1000000 -> 1.162790698e-06 | E194: =C194/0.00086 -> 1.162790698 | F194: Рассчитано консультантом на основе: ГОСТ 305-82 Топливо дизельное | G194: .
B195: Мобильное сжигание
B196: Авиационный бензин | C196: 0.001 | D196: - | E196: -
B197: Топливо для реактивных двигателей | C197: 0.001 | D197: =C197/0.0008/1000000 -> 1.25e-06 | E197: =C197/0.0008 -> 1.25 | F197: Рассчитано консультантом на основе: ГОСТ 10227-86 Топливо для реактивных двигателей | G197: .
B198: Дизельное топливо (железнодорожный транспорт) | C198: 0.001 | D198: - | E198: -
B199: Бензин в автотранспорте
B200: АИ-80 | C200: 0.001 | D200: =C200/0.000715/1000000 -> 1.398601399e-06 | E200: =C200/0.000715 -> 1.398601399 | F200: Рассчитано консультантом на основе: Методические рекомендации по оценке АЗС для целей залога, Рекомендовано к применению решением Комитета АРБ по оценочной деятельности (Протокол Заседания Комитета от 7 октября 2009 года) | G200: .
B201: АИ-92 | C201: 0.001 | D201: =C201/0.000735/1000000 -> 1.360544218e-06 | E201: =C201/0.000735 -> 1.360544218 | F201: Рассчитано консультантом на основе: Методические рекомендации по оценке АЗС для целей залога, Рекомендовано к применению решением Комитета АРБ по оценочной деятельности (Протокол Заседания Комитета от 7 октября 2009 года) | G201: .
B202: АИ-93 | C202: 0.001 | D202: =C202/0.000745/1000000 -> 1.342281879e-06 | E202: =C202/0.000745 -> 1.342281879 | F202: Рассчитано консультантом на основе: Приказ Минприроды России от 27.05.2022 N 371 "Об утверждении методик количественного определения объемов выбросов парниковых газов и поглощений парниковых газов" (Зарегистрировано в Минюсте России 29.07.2022 N 69451) | G202: .
B203: АИ-95 | C203: 0.001 | D203: =C203/0.0007475/1000000 -> 1.337792642e-06 | E203: =C203/0.0007475 -> 1.337792642 | F203: Рассчитано консультантом на основе: Методические рекомендации по оценке АЗС для целей залога, Рекомендовано к применению решением Комитета АРБ по оценочной деятельности (Протокол Заседания Комитета от 7 октября 2009 года) | G203: .
B204: АИ-98 | C204: 0.001 | D204: =C204/0.000765/1000000 -> 1.307189542e-06 | E204: =C204/0.000765 -> 1.307189542 | F204: Рассчитано консультантом на основе: Методические рекомендации по оценке АЗС для целей залога, Рекомендовано к применению решением Комитета АРБ по оценочной деятельности (Протокол Заседания Комитета от 7 октября 2009 года) | G204: .
B205: Дизельное топливо (летнее, зимнее, арктическое) в автотранспорте | C205: 0.001 | D205: - | E205: -
B206: Сжиженный нефтяной газ (пропан, изобутан, н-бутан) | C206: 0.001 | D206: - | E206: -
B207: Газ сжиженный (морской и внутренний водный транспорт) | C207: 0.001 | D207: - | E207: -
B208: Мазутное топливо (мазут флотский) | C208: 0.001 | D208: - | E208: -
B209: Дизельное топливо (морской и внутренний водный транспорт) | C209: 0.001 | D209: - | E209: -
B210: Компримированный природный газ | C210: 0.001 | D210: - | E210: -
... 49 more rows

Sheet Доп.формулы для кер_стекло (hidden)
B2: На данном листе приведены дополнительные формулы для расчета выбросов по производству стекла и керамики.
B4: Выбросы от керамических изделий
B6: Наименование | C6: Выбросы
B7: CaCO3 | C7: ='1.Внесение данных'!D60*'1.Внесение данных'!D64*'1.Внесение данных'!D68*Справочник!C262 -> 0
B8: MgCO3 | C8: ='1.Внесение данных'!D61*'1.Внесение данных'!D65*'1.Внесение данных'!D69*Справочник!C263 -> 0
B9: CaMg(CO3) 2 | C9: ='1.Внесение данных'!D62*'1.Внесение данных'!D66*'1.Внесение данных'!D70*Справочник!C264 -> 0
B10: FeCO3 | C10: ='1.Внесение данных'!D63*'1.Внесение данных'!D67*'1.Внесение данных'!D71*Справочник!C265 -> 0
B11: Итого | C11: =SUM(C7:C10) -> 0
B13: Выбросы от производства стекла
B15: Наименование | C15: Выбросы
B16: CaCO3 | C16: ='1.Внесение данных'!D77*'1.Внесение данных'!D81*Справочник!C262 -> 0
B17: MgCO3 | C17: ='1.Внесение данных'!D78*'1.Внесение данных'!D82*Справочник!C263 -> 0
B18: CaMg(CO3) 2 | C18: ='1.Внесение данных'!D79*'1.Внесение данных'!D83*Справочник!C264 -> 0
B19: FeCO3 | C19: ='1.Внесение данных'!D80*'1.Внесение данных'!D84*Справочник!C265 -> 0
B20: Итого | C20: =SUM(C16:C19) -> 0

Sheet Ед. измерения (hidden)
A1: тыс м^3
A2: л
A3: т
A4: Необходимо заполнить
